[Event "Chinese League Division-A 2024"]
[Site "Fuling Chongqing"]
[Date "2024.06.28"]
[Round "3.11"]
[White "Xu, Yinglun"]
[Black "Wang, Yue"]
[Result "1/2-1/2"]
[ECO "E17"]
[WhiteElo "2526"]
[BlackElo "2652"]
[Annotator "TA"]
[PlyCount "60"]
[EventDate "2024.06.28"]
[EventType "team-tourn"]
[EventCountry "CHN"]
[SourceTitle "playchess.com"]
[Source "ChessBase"]
[SourceQuality "1"]
[TimeControl "40/5400+30:1800+30"]

{[%evp 20,60,0,-2,10,6,6,6,7,11,6,4,6,0,0,0,0,0,0,0,0,0,0,0,0,0,0,0,0,0,0,0,0,0,0,0,0,0,0,0,0,0,0]} 1. c4 {[%emt 0:00:11]} Nf6 {[%emt 0:00:31]} 2. Nf3 {[%emt 0:00:31]} e6 {[%emt 0:00:07]} 3. b3 {[%emt 0:01:57]} b6 {[%emt 0:08:05]} 4. g3 {[%emt 0:01:51]} Bb7 {[%emt 0:00:37]} 5. Bg2 {[%emt 0:00:07]} Be7 {[%emt 0:00:17]} 6. Bb2 {[%emt 0:02:22]} c5 {[%emt 0:01:47]} 7. O-O {[%emt 0:09:52]} O-O {[%emt 0:03:38]} 8. Nc3 {[%emt 0:01:07]} d5 {[%emt 0:09:00]} 9. cxd5 {[%emt 0:15:01]} Nxd5 {[%emt 0:01:47]} 10. d4 {[%emt 0:00:14]} Nxc3 {[%emt 0:03:00]} 11. Bxc3 {[%emt 0:00:06] The position is equal.} cxd4 {[%emt 0:02:41]} 12. Qxd4 {[%emt 0:01:09]} Qxd4 {[%emt 0:00:20]} 13. Nxd4 {[%emt 0:00:38]} Bxg2 {[%emt 0:00:09]} 14. Kxg2 {[%emt 0:00:05]} Rc8 {[%emt 0:01:20]} 15. Rac1 {[%emt 0:00:38]} Nc6 {[%emt 0:00:44]} 16. Nxc6 {[%emt 0:02:10]} Rxc6 {[%emt 0:00:02]} 17. Bb2 {[%emt 0:00:27]} Rac8 {[%emt 0:00:08]} 18. Rxc6 {[%emt 0:00:06]} Rxc6 {[%emt 0:00:04]} 19. Rc1 {[%emt 0:00:04] Dodges Rc2} Rxc1 {[%emt 0:00:19]} 20. Bxc1 $11 {[%emt 0:00:05][%mdl 4096] Endgame. KB-KB} Kf8 {[%emt 0:00:12]} 21. Kf3 {[%emt 0:00:10]} Ke8 {[%emt 0:00:04]} 22. Ke4 {[%emt 0:01:21]} Kd7 {[%emt 0:00:06]} 23. g4 {[%emt 0:00:49]} g6 {[%emt 0:00:15]} 24. Kd3 {[%emt 0:00:07]} b5 {[%emt 0:00:06]} 25. e4 {[%emt 0:00:11]} a6 {[%emt 0:00:05]} 26. h3 {[%emt 0:00:06]} Kc6 {[%emt 0:00:04]} 27. f3 {[%emt 0:00:06]} Bf6 {[%emt 0:00:07]} 28. Be3 {[%emt 0:00:06]} Be7 {[%emt 0:00:05]} 29. Bc1 {[%emt 0:00:04]} Bf6 {[%emt 0:00:04]} 30. Be3 {[%emt 0:00:04]} Be7 {[%emt 0:00:04] A rather calm draw.   Weighted Error Value: White=0.01 (flawless) /Black=0.01 (flawless) .  OK:         	White=6     	Black=10} 1/2-1/2

[Event "Chinese League Division-A 2024"]
[Site "Fuling Chongqing"]
[Date "2024.06.28"]
[Round "3.12"]
[White "Dai, Changren"]
[Black "Xie, Kaifan"]
[Result "1-0"]
[ECO "B11"]
[WhiteElo "2502"]
[BlackElo "2376"]
[Annotator "TA"]
[PlyCount "67"]
[EventDate "2024.06.28"]
[EventType "team-tourn"]
[EventCountry "CHN"]
[SourceTitle "playchess.com"]
[Source "ChessBase"]
[SourceQuality "1"]
[TimeControl "40/5400+30:1800+30"]

{[%evp 10,67,20,8,14,2,15,18,20,18,25,17,33,29,13,20,25,0,17,-13,8,-35,116,1,91,83,91,79,92,107,87,13,179,187,199,168,184,185,180,179,221,56,61,52,43,73,70,70,176,181,179,179,198,184,241,245,270,292,312,312]} 1. e4 {[%emt 0:00:06]} c6 {[%emt 0:00:07]} 2. Nf3 {[%emt 0:00:13]} d5 {[%emt 0:00:21]} 3. Nc3 {[%emt 0:00:05]} Bg4 {[%emt 0:01:04]} 4. h3 {[%emt 0:00:07]} Bxf3 {[%emt 0:00:27]} 5. Qxf3 {[%emt 0:00:09]} e6 {[%emt 0:00:15]} 6. Be2 {[%emt 0:00:17]} Bc5 {[%emt 0:06:01][%cal Bf8c5,Bc5d4,Bd4f6][%mdl 32]} 7. Qg3 {[%emt 0:00:13]} Bd4 {[%emt 0:02:07]} 8. d3 {[%emt 0:00:11]} Ne7 {[%emt 0:04:02] The position is equal.} 9. Bd1 {[%emt 0:10:07]} Nd7 {[%emt 0:19:46]} 10. Ne2 {[%emt 0:00:46]} Bf6 {[%emt 0:00:42]} 11. O-O {[%emt 0:06:07]} Qb6 {[%emt 0:13:28]} 12. c3 {[%emt 0:05:26]} O-O {[%emt 0:02:04]} 13. Rb1 {[%emt 0:02:20]} Qa6 {[%emt 0:04:59]} 14. f4 {[%emt 0:11:39]} e5 {[%emt 0:04:40]} 15. d4 {[%emt 0:02:52]} exf4 {[%emt 0:06:30]} (15... exd4 $1 $15 16. e5 Nf5) 16. Nxf4 {[%emt 0:01:32]} (16. Qg4 $1 $16 {[%cal Rg4d7]}) 16... dxe4 {[%emt 0:00:39]} (16... Qxa2 $11 17. Qd3 dxe4 18. Qxe4 Rfe8) 17. Bg4 $16 {[%emt 0:01:47]} Rfd8 {[%emt 0:09:44][%cal Bf8d8,Bd8d7,Bd7d6][%mdl 32]} (17... Qxa2 $2 18. Bxd7 Ng6 (18... Qxb1 $2 19. Nh5 $18) 19. Be3 $18) 18. Nh5 $36 {[%emt 0:05:55][%mdl 2048] Bxd7 would now be deadly. White has strong initiative.} Ng6 {[%emt 0:05:06]} 19. Bxd7 {[%emt 0:01:54]} Rxd7 {[%emt 0:01:10] [#]} 20. Bh6 {[%emt 0:02:21]} c5 $2 {[%emt 0:04:17] [#]} (20... Bh4 $11 {and Black has nothing to worry.} 21. Qg4 f5 22. Qxf5 (22. Rxf5 gxh6 23. g3 Qxa2 $15) 22... Re7 23. Bxg7 e3) 21. Rxf6 $1 $18 {[%emt 0:05:56][%mdl 512]} gxf6 {[%emt 0:00:07]} 22. Rf1 {[%emt 0:00:02]} ({Worse is} 22. dxc5 Rd5 23. Qg4 Rxc5 $11) 22... Rd6 {[%emt 0:01:05]} 23. dxc5 {[%emt 0:00:49]} Re6 {[%emt 0:02:11]} 24. Qf2 {[%emt 0:01:14]} Rc8 {[%emt 0:03:17]} 25. Nxf6+ $2 {[%emt 0:13:20]} ({White should play} 25. b4 $18) 25... Rxf6 $14 {[%emt 0:00:10]} 26. Qxf6 {[%emt 0:00:04]} Qxf6 {[%emt 0:00:07]} 27. Rxf6 {[%emt 0:00:07] b4 is the strong threat.} Rxc5 $18 {[%emt 0:00:13][%mdl 4096] Endgame. KRB-KRN} 28. Rd6 {[%emt 0:00:08] White is more active.} Rc8 {[%emt 0:01:16] Prevents Rd8+} (28... f5 $14) 29. Rd7 {[%emt 0:01:26]} Rb8 {[%emt 0:00:30]} 30. b3 {[%emt 0:02:52]} Nf8 {[%emt 0:02:04]} 31. Re7 {[%emt 0:01:58]} Ne6 {[%emt 0:00:08]} (31... a6 $142 32. Rxe4 Rd8 33. Rg4+ Ng6) 32. Kf2 {[%emt 0:00:37]} a5 {[%emt 0:00:57]} 33. Ke3 {[%emt 0:01:17]} Nc5 {[%emt 0:00:51]} 34. Re5 {[%emt 0:00:26] Weighted Error Value: White=0.25 (precise) /Black=0.33.  Loses game:     	---       	Black=1      Missed win:     	White=1     	---        Mistake:       	White=2     	Black=4      Inaccurate:     	White=2     	---        OK:         	White=15    	Black=11     Best:        	White=1     	Black=1} 1-0

[Event "Chinese League Division-A 2024"]
[Site "Fuling Chongqing"]
[Date "2024.06.28"]
[Round "3.13"]
[White "Wu, Yixing"]
[Black "Wang, Shixu B"]
[Result "0-1"]
[ECO "E28"]
[WhiteElo "2326"]
[BlackElo "2422"]
[Annotator "RC"]
[PlyCount "76"]
[EventDate "2024.06.28"]
[EventType "team-tourn"]
[EventCountry "CHN"]
[SourceTitle "playchess.com"]
[Source "ChessBase"]
[SourceQuality "1"]
[TimeControl "40/5400+30:1800+30"]

1. d4 {[%emt 0:00:03]} Nf6 {[%emt 0:00:06]} 2. c4 {[%emt 0:00:04]} e6 {[%emt 0:00:05]} 3. Nc3 {[%emt 0:00:03]} Bb4 {[%emt 0:00:05]} 4. e3 {[%emt 0:00:05]} O-O {[%emt 0:00:51]} 5. a3 {[%emt 0:00:06]} Bxc3+ {[%emt 0:00:10]} 6. bxc3 {[%emt 0:00:04]} c5 {[%emt 0:00:41]} 7. Ne2 {[%emt 0:01:23]} Nc6 {[%emt 0:00:07]} 8. Ng3 {[%emt 0:00:13]} d6 {[%emt 0:01:04]} 9. Ra2 {[%emt 0:00:21]} Qa5 {[%emt 0:04:41]} 10. Bd2 {[%emt 0:04:25]} Qc7 {[%emt 0:00:19]} 11. Bd3 {[%emt 0:03:53]} b6 {[%emt 0:00:22]} 12. Nh5 {[%emt 0:08:41]} Nxh5 {[%emt 0:02:58]} 13. Qxh5 {[%emt 0:00:14]} f5 {[%emt 0:00:12]} 14. O-O {[%emt 0:10:51]} e5 {[%emt 0:04:27]} 15. d5 {[%emt 0:04:04]} Na5 {[%emt 0:00:25]} 16. e4 {[%emt 0:02:05]} f4 {[%emt 0:14:55]} 17. Qf3 {[%emt 0:07:30]} Qd7 {[%emt 0:05:59]} 18. Qe2 {[%emt 0:11:38]} Qa4 {[%emt 0:02:39]} 19. Bc2 {[%emt 0:04:07]} Qe8 {[%emt 0:03:50]} 20. f3 {[%emt 0:14:02]} Ba6 {[%emt 0:00:39]} 21. Bd3 {[%emt 0:00:06]} Qa4 {[%emt 0:00:11]} 22. Rb1 {[%emt 0:00:22]} Rab8 {[%emt 0:04:46]} 23. Bc1 {[%emt 0:03:54]} Bxc4 {[%emt 0:00:09]} 24. Bxc4 {[%emt 0:00:19]} Nxc4 {[%emt 0:00:21]} 25. Qc2 {[%emt 0:01:53]} b5 {[%emt 0:00:59]} 26. Kf2 {[%emt 0:03:00]} Qa6 {[%emt 0:04:21]} 27. Bd2 {[%emt 0:01:37]} Rfc8 {[%emt 0:08:57]} 28. Qd3 {[%emt 0:04:26]} Qb6 {[%emt 0:09:54]} 29. a4 {[%emt 0:02:19]} Qa6 {[%emt 0:05:59]} 30. g3 {[%emt 0:05:53]} Rf8 {[%emt 0:09:10]} 31. Ke2 {[%emt 0:02:57]} Nxd2 {[%emt 0:01:05]} 32. Kxd2 {[%emt 0:00:48]} c4 {[%emt 0:00:22]} 33. Qf1 {[%emt 0:01:19]} bxa4 {[%emt 0:00:57]} 34. Rba1 {[%emt 0:01:31]} a3 {[%emt 0:01:09]} 35. gxf4 {[%emt 0:02:05]} exf4 {[%emt 0:00:07]} 36. Rxa3 {[%emt 0:00:42]} Rb2+ {[%emt 0:00:43]} 37. Kc1 {[%emt 0:00:01]} Qb6 {[%emt 0:00:15]} 38. Rxa7 {[%emt 0:01:41]} Rb8 {[%emt 0:01:01]} 0-1

[Event "Chinese League Division-A 2024"]
[Site "Fuling Chongqing"]
[Date "2024.06.28"]
[Round "3.14"]
[White "Zhou, Shumeng"]
[Black "Chen, Yining"]
[Result "1/2-1/2"]
[ECO "B12"]
[WhiteElo "2173"]
[BlackElo "2300"]
[Annotator "RC"]
[PlyCount "63"]
[EventDate "2024.06.28"]
[EventType "team-tourn"]
[EventCountry "CHN"]
[SourceTitle "playchess.com"]
[Source "ChessBase"]
[SourceQuality "1"]
[TimeControl "40/5400+30:1800+30"]

1. e4 {[%emt 0:00:03]} c6 {[%emt 0:00:08]} 2. d4 {[%emt 0:00:06]} d5 {[%emt 0:00:08]} 3. e5 {[%emt 0:00:09]} Bf5 {[%emt 0:00:20]} 4. h4 {[%emt 0:00:31]} a6 {[%emt 0:00:19]} 5. a3 {[%emt 0:06:03]} c5 {[%emt 0:05:08]} 6. dxc5 {[%emt 0:03:12]} Qc7 {[%emt 0:06:36]} 7. Nf3 {[%emt 0:04:24]} Qxc5 {[%emt 0:04:50]} 8. Nc3 {[%emt 0:05:41]} e6 {[%emt 0:12:40]} 9. Nd4 {[%emt 0:02:42]} Qc7 {[%emt 0:05:24]} 10. Bf4 {[%emt 0:03:33]} Nh6 {[%emt 0:04:04]} 11. Be2 {[%emt 0:06:49]} Bc5 {[%emt 0:04:25]} 12. Nb3 {[%emt 0:10:15]} d4 {[%emt 0:06:41]} 13. Nxd4 {[%emt 0:00:20]} Bxd4 {[%emt 0:00:09]} 14. Qxd4 {[%emt 0:00:04]} Nc6 {[%emt 0:06:27]} 15. Qe3 {[%emt 0:11:10]} Bxc2 {[%emt 0:05:50]} 16. Bxh6 {[%emt 0:01:15]} gxh6 {[%emt 0:00:15]} 17. Rc1 {[%emt 0:03:29]} Bb3 {[%emt 0:00:47]} 18. f4 {[%emt 0:03:30]} O-O-O {[%emt 0:12:20]} 19. O-O {[%emt 0:02:12]} Rhg8 {[%emt 0:01:07]} 20. Bf3 {[%emt 0:00:53]} Bc4 {[%emt 0:06:17]} 21. Rfd1 {[%emt 0:03:52]} Rxd1+ {[%emt 0:01:24]} 22. Nxd1 {[%emt 0:01:29]} Bd5 {[%emt 0:00:27]} 23. Nc3 {[%emt 0:02:36]} Bxf3 {[%emt 0:03:21]} 24. Qxf3 {[%emt 0:00:02]} Kb8 {[%emt 0:00:43]} 25. Qf2 {[%emt 0:03:56]} Ne7 {[%emt 0:01:50]} 26. Rc2 {[%emt 0:05:00]} Qc6 {[%emt 0:02:03]} 27. a4 {[%emt 0:01:49]} Qd7 {[%emt 0:02:01]} 28. Rd2 {[%emt 0:00:32]} Qc7 {[%emt 0:01:11]} 29. Rc2 {[%emt 0:04:15]} Qd7 {[%emt 0:03:28]} 30. Rd2 {[%emt 0:00:13]} Qc7 {[%emt 0:00:27]} 31. Rc2 {[%emt 0:00:06]} Qd7 {[%emt 0:02:04]} 32. Rd2 {[%emt 0:00:10]} 1/2-1/2

[Event "Chinese League Division-A 2024"]
[Site "Fuling Chongqing"]
[Date "2024.06.28"]
[Round "3.15"]
[White "Wang, Qinxuanyi"]
[Black "Jiang, Tianyu"]
[Result "1/2-1/2"]
[ECO "D46"]
[WhiteElo "2149"]
[BlackElo "1995"]
[Annotator "NA RC"]
[PlyCount "86"]
[EventDate "2024.06.28"]
[EventType "team-tourn"]
[EventCountry "CHN"]
[SourceTitle "playchess.com"]
[Source "ChessBase"]
[SourceQuality "1"]
[TimeControl "40/5400+30:1800+30"]

1. d4 {[%emt 0:00:03]} Nf6 {[%emt 0:00:22]} 2. c4 {[%emt 0:00:08]} e6 {[%emt 0:00:17]} 3. Nf3 {[%emt 0:00:08]} d5 {[%emt 0:01:09]} 4. Nc3 {[%emt 0:00:08]} c6 {[%emt 0:00:06]} 5. e3 {[%emt 0:00:07]} Nbd7 {[%emt 0:00:11]} 6. Qc2 {[%emt 0:00:07]} Bd6 {[%emt 0:00:18]} 7. Bd3 {[%emt 0:00:08]} O-O {[%emt 0:02:17]} 8. O-O {[%emt 0:00:06]} e5 {[%emt 0:06:15]} 9. cxd5 {[%emt 0:00:11]} cxd5 {[%emt 0:00:17]} 10. Nb5 {[%emt 0:01:21]} Bb8 {[%emt 0:00:55]} 11. dxe5 {[%emt 0:00:17]} Nxe5 {[%emt 0:00:07]} 12. Nxe5 {[%emt 0:00:02]} Bxe5 {[%emt 0:00:07]} 13. Bd2 {[%emt 0:00:11]} a6 {[%emt 0:05:02]} 14. Nd4 {[%emt 0:12:58]} Ne4 {[%emt 0:11:24]} 15. Bxe4 {[%emt 0:00:00]} dxe4 {[%emt 0:00:38]} 16. Qxe4 {[%emt 0:00:00]} Re8 {[%emt 0:00:14]} 17. Qd3 {[%emt 0:00:00]} Qd6 {[%emt 0:04:31]} 18. h3 {[%emt 0:00:00]} Bxd4 {[%emt 0:00:34]} 19. exd4 {[%emt 0:00:27]} Bd7 {[%emt 0:04:31]} 20. a4 {[%emt 0:07:06]} Bc6 {[%emt 0:05:54]} 21. Be3 {[%emt 0:02:06]} Re6 {[%emt 0:05:46]} 22. f3 {[%emt 0:05:36]} Rae8 {[%emt 0:15:09]} 23. Bf2 {[%emt 0:01:02]} Re2 {[%emt 0:02:35]} 24. b3 {[%emt 0:01:51]} Bd5 {[%emt 0:09:22]} 25. Rac1 {[%emt 0:04:22]} h6 {[%emt 0:02:36]} 26. Rc5 {[%emt 0:06:25]} Rb2 {[%emt 0:10:09]} 27. Rb1 {[%emt 0:00:28]} Rxb1+ {[%emt 0:00:30]} 28. Qxb1 {[%emt 0:00:04]} b6 {[%emt 0:00:44]} 29. Rc3 {[%emt 0:01:12]} Qb4 {[%emt 0:01:52]} 30. Qc2 {[%emt 0:01:35]} Be6 {[%emt 0:01:17]} 31. f4 {[%emt 0:06:11]} Bd5 {[%emt 0:05:55]} 32. Rg3 {[%emt 0:05:17]} Qd6 {[%emt 0:03:29]} 33. Qf5 {[%emt 0:03:26]} Qe6 {[%emt 0:01:42]} 34. Qh5 {[%emt 0:00:24]} Be4 {[%emt 0:00:34]} 35. Qe2 {[%emt 0:04:57]} a5 {[%emt 0:00:31]} 36. Qb5 {[%emt 0:01:13]} Qc6 {[%emt 0:00:25]} 37. Qxc6 {[%emt 0:02:30]} Bxc6 {[%emt 0:00:04]} 38. f5 {[%emt 0:00:05]} Kh7 {[%emt 0:01:09]} 39. Rc3 {[%emt 0:00:19]} Bd5 {[%emt 0:00:19]} 40. Kf1 {[%emt 0:00:00]} g6 {[%emt 0:00:00]} 41. fxg6+ {[%emt 0:01:45]} Kxg6 {[%emt 0:05:47]} 42. Bg3 {[%emt 0:00:47]} Re6 {[%emt 0:10:42]} 43. Bc7 {[%emt 0:03:53]} Kf5 {[%emt 0:02:07]} 1/2-1/2

[Event "Chinese League Division-A 2024"]
[Site "Fuling Chongqing"]
[Date "2024.06.28"]
[Round "3.16"]
[White "Wang, Hao"]
[Black "Jiang, Haochen"]
[Result "1/2-1/2"]
[ECO "D35"]
[WhiteElo "2702"]
[BlackElo "2290"]
[Annotator "TA"]
[PlyCount "137"]
[EventDate "2024.06.28"]
[EventType "team-tourn"]
[EventCountry "CHN"]
[SourceTitle "playchess.com"]
[Source "ChessBase"]
[SourceQuality "1"]
[TimeControl "40/5400+30:1800+30"]

{[%evp 28,137,0,0,20,13,18,0,21,26,22,13,12,12,23,-16,-17,-6,-8,0,12,19,8,6,22,-14,0,-2,-10,-6,58,40,48,56,75,89,67,87,86,87,80,80,71,79,79,87,87,80,83,73,73,73,73,62,91,91,91,91,92,92,92,91,91,91,91,91,91,74,74,61,91,91,99,0,91,68,91,69,91,69,99,91,99,69,99,0,99,91,91,76,91,76,85,85,85,76,91,76,76,76,76,76,76,69,91,84,91,0,0,0,0,0]} 1. d4 {[%emt 0:00:19]} Nf6 {[%emt 0:00:22]} 2. c4 {[%emt 0:00:05]} e6 {[%emt 0:01:00]} 3. Nc3 {[%emt 0:00:06]} d5 {[%emt 0:00:09]} 4. cxd5 {[%emt 0:00:26]} exd5 {[%emt 0:00:31]} 5. Bg5 {[%emt 0:00:06]} Be7 {[%emt 0:01:29]} 6. e3 {[%emt 0:00:11]} h6 {[%emt 0:00:08]} 7. Bh4 {[%emt 0:03:18]} O-O {[%emt 0:02:47]} 8. Bd3 {[%emt 0:00:19]} Nbd7 {[%emt 0:01:33] D35: Queen's Gambit Declined: Exchange Variation.} 9. Nge2 {[%emt 0:03:03]} b6 {[%emt 0:04:02]} 10. O-O {[%emt 0:02:51]} c5 {[%emt 0:00:53]} 11. Bg3 {[%emt 0:12:28]} a6 $146 {[%emt 0:03:01]} ({Predecessor:} 11... cxd4 12. Nxd4 Bb7 13. Ncb5 Ne8 14. Rc1 Nc5 15. Bb1 a6 16. Nc3 Rc8 17. Bf5 Ra8 {1-0 Zumrik,L (1730)-Duda,D (1245) SVK-ch U14 Liptovsky Mikulas 2019 (6)}) 12. dxc5 {[%emt 0:04:39]} bxc5 {[%emt 0:07:45]} 13. e4 {[%emt 0:00:24]} d4 {[%emt 0:12:34]} 14. Nb1 {[%emt 0:02:43]} Bb7 {[%emt 0:02:20]} 15. Nd2 {[%emt 0:00:14]} Nb6 {[%emt 0:14:15]} 16. Rc1 {[%emt 0:03:24]} Rc8 {[%emt 0:01:47]} 17. f3 {[%emt 0:12:02]} Nfd7 {[%emt 0:06:08]} 18. a4 {[%emt 0:05:20]} a5 {[%emt 0:05:21]} 19. Bb5 {[%emt 0:01:25]} Bg5 {[%emt 0:03:36]} 20. Kh1 {[%emt 0:09:21]} Be3 {[%emt 0:02:04]} 21. Bf4 {[%emt 0:00:12]} Bc6 {[%emt 0:04:39]} 22. b3 {[%emt 0:02:48]} Bxb5 {[%emt 0:11:20]} 23. axb5 {[%emt 0:00:18]} Qf6 {[%emt 0:01:43]} 24. Bxe3 {[%emt 0:00:52]} dxe3 {[%emt 0:00:02]} 25. Nc4 {[%emt 0:00:07]} Ne5 {[%emt 0:01:31]} 26. Nc3 {[%emt 0:13:37]} (26. Nxa5 $2 Rfd8 27. Qe1 Nd3 $19) 26... Rfd8 {[%emt 0:08:15]} 27. Nd5 {[%emt 0:00:26]} Nxd5 {[%emt 0:00:04]} 28. exd5 {[%emt 0:00:07]} Ng6 {[%emt 0:03:01]} (28... Rb8 $1 $11) 29. Nxe3 $14 {[%emt 0:07:30]} (29. Nxa5 $2 {is the wrong capture.} Nf4 30. g3 e2 $19 (30... Nxd5 31. Qd3 $17) (30... Rxd5 $2 31. Qe1 $19)) 29... Nf4 {[%emt 0:01:44]} 30. Qd2 {[%emt 0:01:57]} Ne6 {[%emt 0:00:42]} 31. Qxa5 {[%emt 0:05:49]} Nd4 {[%emt 0:00:21]} 32. Qc3 {[%emt 0:00:12]} Qb6 {[%emt 0:00:52]} 33. b4 {[%emt 0:02:37]} cxb4 {[%emt 0:00:27]} 34. Qxb4 {[%emt 0:00:05]} ({Much worse is} 34. Qxc8 Rxc8 35. Rxc8+ Kh7 $11) 34... Rxc1 {[%emt 0:00:32]} 35. Rxc1 {[%emt 0:00:06]} Nxb5 {[%emt 0:00:30]} 36. Nf5 {[%emt 0:02:41]} Qf6 {[%emt 0:00:30]} 37. Ne7+ {[%emt 0:03:48]} Kh7 {[%emt 0:00:14]} 38. Qb1+ {[%emt 0:01:45]} (38. Qxb5 {simplifies} Qxe7 39. Rd1 g6 40. Qc4) 38... g6 {[%emt 0:00:44]} 39. Nxg6 {[%emt 0:00:53]} Nc3 {[%emt 0:00:31]} 40. Qa1 {[%emt 0:00:00]} Qxg6 {[%emt 0:00:00]} 41. Qxc3 {[%emt 0:01:58]} ({Don't take} 41. Rxc3 Rxd5 42. Rc1 Rd2 $14) 41... Rxd5 {[%emt 0:00:36]} 42. h3 {[%emt 0:00:17]} Rd3 {[%emt 0:04:05]} 43. Qb4 {[%emt 0:00:45]} Qd6 {[%emt 0:00:50]} 44. Qe4+ {[%emt 0:00:04]} (44. Qxd6 {simplifies} Rxd6 45. h4 Kg6 46. Re1) 44... Kg7 {[%emt 0:00:50]} 45. Qg4+ {[%emt 0:00:17]} Qg6 {[%emt 0:01:25]} 46. Qb4 {[%emt 0:00:29]} Qd6 {[%emt 0:00:41]} 47. Qh4 {[%emt 0:00:50]} (47. Qxd6 {simplifies} Rxd6 48. Rc5 Kg6 49. g4) 47... Rd4 {[%emt 0:01:04]} 48. Qe1 {[%emt 0:00:22]} Rd2 {[%emt 0:01:29]} 49. Qe3 {[%emt 0:01:46]} Qd4 {[%emt 0:02:48]} 50. Qe1 {[%emt 0:00:17]} (50. Qxd4+ {simplifies} Rxd4 51. Rc5 Rf4 52. Kg1) 50... Qd6 $1 {[%emt 0:00:00]} 51. Rb1 {[%emt 0:00:27]} (51. Rc6 {keeps more tension.} Qd4 52. Qg3+ Kh7 53. Rc1) 51... Rd4 {[%emt 0:00:40]} 52. Qc3 {[%emt 0:00:32]} Qf6 {[%emt 0:00:37]} 53. Re1 {[%emt 0:00:08]} Rd6 {[%emt 0:00:49]} 54. Qc7 {[%emt 0:00:21]} Rd2 {[%emt 0:00:47]} 55. Qc4 {[%emt 0:02:05]} (55. Re4 {is interesting.} Qd6 56. Rg4+ Kf8 57. Qxd6+ Rxd6 58. Kh2) 55... Qd4 {[%emt 0:01:19]} 56. Qc7 {[%emt 0:00:12]} (56. Qxd4+ {simplifies} Rxd4 57. g4 Rd5 58. Kg2) 56... Qf6 $1 {[%emt 0:00:09]} 57. Qa5 {[%emt 0:01:20]} Qd6 {[%emt 0:00:45]} 58. Rc1 {[%emt 0:01:15]} Qd4 {[%emt 0:01:01]} 59. Rf1 {[%emt 0:02:25]} Qb2 {[%emt 0:01:53]} 60. Rg1 {[%emt 0:00:15]} Qd4 {[%emt 0:00:14]} 61. Qf5 {[%emt 0:00:12]} Qf6 {[%emt 0:00:37]} 62. Qg4+ {[%emt 0:00:08]} (62. Qxf6+ {simplifies} Kxf6 63. Kh2 h5 64. h4) 62... Qg5 {[%emt 0:00:27]} 63. Qb4 {[%emt 0:00:06]} Qe3 {[%emt 0:00:39]} 64. Qb8 {[%emt 0:00:25]} Qg5 {[%emt 0:01:05]} 65. Qc7 {[%emt 0:00:55]} Qd8 {[%emt 0:00:21]} 66. Qh2 {[%emt 0:00:59]} Qd6 {[%emt 0:00:40]} 67. f4 {[%emt 0:00:09]} (67. Qxd6 $16 Rxd6 68. Rc1) 67... Rd3 $11 {[%emt 0:02:19]} 68. Rf1 {[%emt 0:00:09]} Qd5 {[%emt 0:01:49]} 69. Kg1 {[%emt 0:00:33]} 1/2-1/2